Workbook

Sheet Numerical
A1: The American Legion Department of Alaska
A2: Membership Report
A3: 2019-01-04
A4: Post # and Name | B4: Location | C4: 2019 | D4: 2018 | E4: Goal | F4: Diff | G4: % of Goal
A5: Post 01 - Jack Henry | B5: Anchorage | C5: 477 | D5: 496 | E5: 530 | F5: =SUM(C5-E5) -> -53 | G5: =C5/E5 -> 0.9
A6: Post 02 - Valdez | B6: Valdez | C6: 18 | D6: 19 | E6: 19 | F6: -1 | G6: 0.9473684211
A7: Post 03 - Joseph T. Craig | B7: Ketchikan | C7: 145 | D7: 180 | E7: 183 | F7: -38 | G7: 0.7923497268
A8: Post 04 - Pioneer | B8: Anchorage | C8: 9 | D8: 14 | E8: 15 | F8: -6 | G8: 0.6
A9: Post 05 - Seward | B9: Seward | C9: 181 | D9: 219 | E9: 228 | F9: -47 | G9: 0.7938596491
A10: Post 06 - Merlin Elmer Palmer | B10: Wrangell | C10: 36 | D10: 47 | E10: 47 | F10: -11 | G10: 0.7659574468
A11: Post 07 - Skagway | B11: Skagway | C11: 34 | D11: 35 | E11: 36 | F11: -2 | G11: 0.9444444444
A12: Post 08 - John W. Jones | B12: Cordova | C12: 6 | D12: 6 | E12: 7 | F12: -1 | G12: 0.8571428571
A13: Post 09 - Koyukuk | B13: Coldfoot | C13: 26 | D13: 28 | E13: 31 | F13: -5 | G13: 0.8387096774
A14: Post 11 - Dorman H. Baker | B14: Fairbanks | C14: 144 | D14: 210 | E14: 214 | F14: -70 | G14: 0.6728971963
A15: Post 12 - Lynn Canal | B15: Haines | C15: 69 | D15: 105 | E15: 102 | F15: -33 | G15: 0.6764705882
A16: Post 13 - Sitka | B16: Sitka | C16: 56 | D16: 86 | E16: 88 | F16: -32 | G16: 0.6363636364
A17: Post 14 - Edward Locken | B17: Petersburg | C17: 6 | D17: 7 | E17: 7 | F17: =SUM(E17-C17) -> 1 | G17: 0.8571428571
A18: Post 15 - Matanuska Valley | B18: Palmer | C18: 220 | D18: 212 | E18: 241 | F18: =SUM(C18-E18) -> -21 | G18: 0.9128630705
A19: Post 16 - General Buckner | B19: Homer | C19: 117 | D19: 164 | E19: 172 | F19: -55 | G19: 0.6802325581
A20: Post 17 - Robert G. Blair | B20: Kodiak | C20: 116 | D20: 192 | E20: 184 | F20: -68 | G20: 0.6304347826
A21: Post 18 - Ninilchik | B21: Ninilchik | C21: 89 | D21: 108 | E21: 112 | F21: -23 | G21: 0.7946428571
A22: Post 20 - George H. Plumley Memorial | B22: Kenai | C22: 153 | D22: 216 | E22: 217 | F22: -64 | G22: 0.7050691244
A23: Post 21 - Aurora Borealis | B23: Anchorage | C23: 39 | D23: 57 | E23: 53 | F23: -14 | G23: 0.7358490566
A24: Post 22 - Jack Warren | B24: Delta Junction | C24: 33 | D24: 35 | E24: 39 | F24: =SUM(E24-C24) -> 6 | G24: 0.8461538462
A25: Post 25 - Auke Bay | B25: Auke Bay | C25: 82 | D25: 85 | E25: 104 | F25: =SUM(C25-E25) -> -22 | G25: 0.7884615385
A26: Post 26 - Prince of Wales | B26: Craig | C26: 7 | D26: 37 | E26: 33 | F26: =(C26-E26) -> -26 | G26: 0.2121212121
A27: Post 27 - Gladys M. Heintz Memorial | B27: Glenallen | C27: 33 | D27: 45 | E27: 44 | F27: =SUM(C27-E27) -> -11 | G27: 0.75
A28: Post 28 - Spenard | B28: Anchorage | C28: 482 | D28: 578 | E28: 614 | F28: =SUM(C28-E28) -> -132 | G28: 0.7850162866
A29: Post 29 - Muldoon | B29: Anchorage | C29: 203 | D29: 289 | E29: 320 | F29: =SUM(C29-E29) -> -117 | G29: 0.634375
A30: Post 30 - Con Miller | B30: North Pole | C30: 99 | D30: 145 | E30: 142 | F30: =SUM(C30-E30) -> -43 | G30: 0.6971830986
A31: Post 33 - Peters Creek | B31: Chugiak | C31: 268 | D31: 318 | E31: 338 | F31: =(C31-E31) -> -70 | G31: 0.7928994083
A32: Post 34 - Chappie James | B32: Anchorage | C32: 36 | D32: 55 | E32: 56 | F32: =SUM(C32-E32) -> -20 | G32: 0.6428571429
A33: Post 35 - Susitna Valley | B33: Wasilla | C33: 298 | D33: 332 | E33: 343 | F33: -45 | G33: 0.8688046647
A34: Post 57 - C.R. Huber | B34: Fairbanks | C34: 192 | D34: 261 | E34: 267 | F34: -75 | G34: 0.7191011236
A35: Post 75 - Sterling | B35: Sterling | C35: 3 | D35: 12 | E35: 12 | F35: -9 | G35: 0.25
A36: Post 442 - Peter Heyano | B36: Dillingham | C36: 9 | D36: 18 | E36: 21 | F36: -12 | G36: 0.4285714286
A37: Post 77 - Department Headquarters | B37: Anchorage | C37: 422 | D37: 609 | E37: 746 | F37: -324 | G37: 0.5656836461
A38: Post 49 - General Claire L. Chennault | B38: Taipei - Taiwan | C38: 22 | D38: 24 | E38: 26 | F38: -4 | G38: 0.8461538462
A39: GM-01- Mid-Pacific | B39: Tamuning | C39: 50 | D39: 83 | E39: 84 | F39: -34 | G39: 0.5952380952
A40: Grand Totals: | C40: 4179 | D40: 5327 | E40: =SUM(E5:E39) -> 5675 | F40: -1165 | G40: =AVERAGE(C40/E40) -> 0.7363876652

Sheet %
A1: The American Legion Department of Alaska
A2: The American Legion Department of Alaska
A3: Membership Report
A4: 2019-01-04
A5: Post # and Name | B5: Location | C5: 2019 | D5: 2018 | E5: Goal | F5: Diff | G5: % of Goal
A6: Post 02 - Valdez | B6: Valdez | C6: 18 | D6: 19 | E6: 19 | F6: =SUM(C6-E6) -> -1 | G6: =C6/E6 -> 0.9473684211
A7: Post 07 - Skagway | B7: Skagway | C7: 34 | D7: 35 | E7: 36 | F7: =SUM(C7-E7) -> -2 | G7: =C7/E7 -> 0.9444444444
A8: Post 15 - Matanuska Valley | B8: Palmer | C8: 220 | D8: 212 | E8: 241 | F8: =SUM(C8-E8) -> -21 | G8: =C8/E8 -> 0.9128630705
A9: Post 01 - Jack Henry | B9: Anchorage | C9: 477 | D9: 496 | E9: 530 | F9: =SUM(C9-E9) -> -53 | G9: =C9/E9 -> 0.9
A10: Post 35 - Susitna Valley | B10: Wasilla | C10: 298 | D10: 332 | E10: 343 | F10: =SUM(C10-E10) -> -45 | G10: =C10/E10 -> 0.8688046647
A11: Post 08 - John W. Jones | B11: Cordova | C11: 6 | D11: 6 | E11: 7 | F11: =SUM(C11-E11) -> -1 | G11: =C11/E11 -> 0.8571428571
A12: Post 14 - Edward Locken | B12: Petersburg | C12: 6 | D12: 7 | E12: 7 | F12: =SUM(E12-C12) -> 1 | G12: =C12/E12 -> 0.8571428571
A13: Post 22 - Jack Warren | B13: Delta Junction | C13: 33 | D13: 35 | E13: 39 | F13: =SUM(E13-C13) -> 6 | G13: =C13/E13 -> 0.8461538462
A14: Post 49 - General Claire L. Chennault | B14: Taipei - Taiwan | C14: 22 | D14: 24 | E14: 26 | F14: =SUM(C14-E14) -> -4 | G14: =C14/E14 -> 0.8461538462
A15: Post 09 - Koyukuk | B15: Coldfoot | C15: 26 | D15: 28 | E15: 31 | F15: =SUM(C15-E15) -> -5 | G15: =C15/E15 -> 0.8387096774
A16: Post 18 - Ninilchik | B16: Ninilchik | C16: 89 | D16: 108 | E16: 112 | F16: =SUM(C16-E16) -> -23 | G16: =C16/E16 -> 0.7946428571
A17: Post 05 - Seward | B17: Seward | C17: 181 | D17: 219 | E17: 228 | F17: =SUM(C17-E17) -> -47 | G17: =C17/E17 -> 0.7938596491
A18: Post 33 - Peters Creek | B18: Chugiak | C18: 268 | D18: 318 | E18: 338 | F18: =(C18-E18) -> -70 | G18: =C18/E18 -> 0.7928994083
A19: Post 03 - Joseph T. Craig | B19: Ketchikan | C19: 145 | D19: 180 | E19: 183 | F19: =SUM(C19-E19) -> -38 | G19: =C19/E19 -> 0.7923497268
A20: Post 25 - Auke Bay | B20: Auke Bay | C20: 82 | D20: 85 | E20: 104 | F20: =SUM(C20-E20) -> -22 | G20: =C20/E20 -> 0.7884615385
A21: Post 28 - Spenard | B21: Anchorage | C21: 482 | D21: 578 | E21: 614 | F21: =SUM(C21-E21) -> -132 | G21: =C21/E21 -> 0.7850162866
A22: Post 06 - Merlin Elmer Palmer | B22: Wrangell | C22: 36 | D22: 47 | E22: 47 | F22: =SUM(C22-E22) -> -11 | G22: =C22/E22 -> 0.7659574468
A23: Post 27 - Gladys M. Heintz Memorial | B23: Glenallen | C23: 33 | D23: 45 | E23: 44 | F23: =SUM(C23-E23) -> -11 | G23: =C23/E23 -> 0.75
A24: Post 21 - Aurora Borealis | B24: Anchorage | C24: 39 | D24: 57 | E24: 53 | F24: =SUM(C24-E24) -> -14 | G24: =C24/E24 -> 0.7358490566
A25: Post 57 - C.R. Huber | B25: Fairbanks | C25: 192 | D25: 261 | E25: 267 | F25: =SUM(C25-E25) -> -75 | G25: =C25/E25 -> 0.7191011236
A26: Post 20 - George H. Plumley Memorial | B26: Kenai | C26: 153 | D26: 216 | E26: 217 | F26: =SUM(C26-E26) -> -64 | G26: =C26/E26 -> 0.7050691244
A27: Post 30 - Con Miller | B27: North Pole | C27: 99 | D27: 145 | E27: 142 | F27: =SUM(C27-E27) -> -43 | G27: =C27/E27 -> 0.6971830986
A28: Post 16 - General Buckner | B28: Homer | C28: 117 | D28: 164 | E28: 172 | F28: =SUM(C28-E28) -> -55 | G28: =C28/E28 -> 0.6802325581
A29: Post 12 - Lynn Canal | B29: Haines | C29: 69 | D29: 105 | E29: 102 | F29: =SUM(C29-E29) -> -33 | G29: =C29/E29 -> 0.6764705882
A30: Post 11 - Dorman H. Baker | B30: Fairbanks | C30: 144 | D30: 210 | E30: 214 | F30: =SUM(C30-E30) -> -70 | G30: =C30/E30 -> 0.6728971963
A31: Post 34 - Chappie James | B31: Anchorage | C31: 36 | D31: 55 | E31: 56 | F31: =SUM(C31-E31) -> -20 | G31: =C31/E31 -> 0.6428571429
A32: Post 13 - Sitka | B32: Sitka | C32: 56 | D32: 86 | E32: 88 | F32: =SUM(C32-E32) -> -32 | G32: =C32/E32 -> 0.6363636364
A33: Post 29 - Muldoon | B33: Anchorage | C33: 203 | D33: 289 | E33: 320 | F33: =SUM(C33-E33) -> -117 | G33: =C33/E33 -> 0.634375
A34: Post 17 - Robert G. Blair | B34: Kodiak | C34: 116 | D34: 192 | E34: 184 | F34: =SUM(C34-E34) -> -68 | G34: =C34/E34 -> 0.6304347826
A35: Post 04 - Pioneer | B35: Anchorage | C35: 9 | D35: 14 | E35: 15 | F35: =SUM(C35-E35) -> -6 | G35: =C35/E35 -> 0.6
A36: GM-01- Mid-Pacific | B36: Tamuning | C36: 50 | D36: 83 | E36: 84 | F36: =SUM(C36-E36) -> -34 | G36: =C36/E36 -> 0.5952380952
A37: Post 77 - Department Headquarters | B37: Anchorage | C37: 422 | D37: 609 | E37: 746 | F37: =SUM(C37-E37) -> -324 | G37: =C37/E37 -> 0.5656836461
A38: Post 442 - Peter Heyano | B38: Dillingham | C38: 9 | D38: 18 | E38: 21 | F38: =SUM(C38-E38) -> -12 | G38: =C38/E38 -> 0.4285714286
A39: Post 75 - Sterling | B39: Sterling | C39: 3 | D39: 12 | E39: 12 | F39: =SUM(C39-E39) -> -9 | G39: =C39/E39 -> 0.25
A40: Post 26 - Prince of Wales | B40: Craig | C40: 7 | D40: 37 | E40: 33 | F40: =(C40-E40) -> -26 | G40: =C40/E40 -> 0.2121212121
A41: Grand Totals: | C41: 4179 | D41: 5327 | E41: =SUM(E6:E40) -> 5675 | F41: -1165 | G41: =AVERAGE(C41/E41) -> 0.7363876652

Sheet SAL 2019
A1: Barometer 2019 as of January 4, 2019
A2: SQD. # | B2: SQUADRON NAME | C2: GOAL | D2: ACTUAL | E2: PERCENTAGE
A3: 18 | B3: NINILCHIK | C3: 61 | D3: 68 | E3: 111.5
A4: 33 | B4: PETERS CREEK | C4: 88 | D4: 68 | E4: 77.3
A5: 15 | B5: MATANUSKA VALLEY | C5: 69 | D5: 51 | E5: 73.9
A6: 28 | B6: SPENARD | C6: 135 | D6: 98 | E6: 72.6
A7: 35 | B7: SUSITNA VALLEY | C7: 153 | D7: 107 | E7: 69.9
A8: 1 | B8: JACK HENRY | C8: 121 | D8: 81 | E8: 66.9
A9: 57 | B9: C RUSSELL HUBER | C9: 142 | D9: 90 | E9: 63.4
A10: 29 | B10: MULDOON | C10: 35 | D10: 22 | E10: 62.9
A11: 11 | B11: DORMAN H BAKER | C11: 29 | D11: 18 | E11: 62.1
A12: ************ | B12: AVERAGE***************************** | C12: 1422 | D12: 845 | E12: 59.4
A13: 17 | B13: ROBERT G BLAIR | C13: 148 | D13: 77 | E13: 52
A14: 5 | B14: SEWARD | C14: 87 | D14: 45 | E14: 51.7
A15: 20 | B15: GEORGE H PLUMLEY MEMORIAL | C15: 82 | D15: 38 | E15: 46.3
A16: 16 | B16: GENERAL BUCKNER | C16: 90 | D16: 36 | E16: 40
A17: 3 | B17: KETCHIKAN | C17: 41 | D17: 16 | E17: 39
A18: 13 | B18: SITKA | C18: 52 | D18: 18 | E18: 34.6
A19: 12 | B19: LYNN CANAL | C19: 50 | D19: 12 | E19: 24
A20: 34 | B20: CHAPPIE JAMES | C20: 10 | D20: 0 | E20: 0
A21: 30 | B21: CON MILLER | C21: 29 | D21: 0 | E21: 0
B27: DETACHMENT | C27: 1422 | D27: 845 | E27: 59.4

Sheet AUX 2019
A1: ALA 2019 BAROMETER as of 1/4/2019
A2: UNIT NO. | B2: UNIT NAME | C2: OBJECTIVE | D2: JUNIOR | E2: SENIOR | F2: TOTAL | G2: PERCENT
A3: 0077 | B3: HEADQUARTERS | C3: 11 | D3: 0 | E3: 11 | F3: 11 | G3: =F3/C3 -> 1
A4: 0006 | B4: MERLIN ELMER PALMER | C4: 96 | D4: 14 | E4: 61 | F4: 75 | G4: =F4/C4 -> 0.78125
A5: 0442 | B5: PETER HEYANO - DILLINGHAM | C5: 16 | D5: 1 | E5: 8 | F5: 9 | G5: 0.5625
A6: 0027 | B6: GLADYS M. HEINTZ | C6: 15 | D6: 0 | E6: 8 | F6: 8 | G6: =F6/C6 -> 0.5333333333
A7: 0018 | B7: NINILCHIK | C7: 157 | D7: 2 | E7: 73 | F7: 75 | G7: =F7/C7 -> 0.4777070064
A8: 0035 | B8: SUSITNA VALLEY | C8: 229 | D8: 4 | E8: 103 | F8: 107 | G8: =F8/C8 -> 0.4672489083
A9: 0033 | B9: PETERS CREEK | C9: 216 | D9: 7 | E9: 92 | F9: 99 | G9: =F9/C9 -> 0.4583333333
A10: 0020 | B10: GEO. H. PLUMLEY MEMORIAL | C10: 216 | D10: 5 | E10: 94 | F10: 99 | G10: =F10/C10 -> 0.4583333333
A11: 0057 | B11: C. RUSSELL HUBER | C11: 278 | D11: 6 | E11: 121 | F11: 127 | G11: =F11/C11 -> 0.4568345324
A12: 0001 | B12: JACK HENRY | C12: 376 | D12: 6 | E12: 163 | F12: 169 | G12: =F12/C12 -> 0.4494680851
A13: 0005 | B13: SEWARD | C13: 229 | D13: 1 | E13: 95 | F13: 96 | G13: =F13/C13 -> 0.4192139738
A14: 0011 | B14: DORMAN H. BAKER | C14: 121 | D14: 3 | E14: 45 | F14: 48 | G14: =F14/C14 -> 0.3966942149
A15: 0012 | B15: LYNN CANAL | C15: 156 | D15: 1 | E15: 56 | F15: 57 | G15: =F15/C15 -> 0.3653846154
A16: 0003 | B16: KETCHIKAN | C16: 82 | D16: 0 | E16: 29 | F16: 29 | G16: =F16/C16 -> 0.3536585366
A17: 0016 | B17: GENERAL BUCKNER | C17: 221 | D17: 2 | E17: 74 | F17: 76 | G17: =F17/C17 -> 0.3438914027
A18: 0029 | B18: MULDOON | C18: 166 | D18: 0 | E18: 52 | F18: 52 | G18: =F18/C18 -> 0.313253012
A19: 0030 | B19: CON MILLER | C19: 56 | D19: 0 | E19: 17 | F19: 17 | G19: =F19/C19 -> 0.3035714286
A20: 0015 | B20: MATANUSKA VALLEY | C20: 237 | D20: 1 | E20: 67 | F20: 68 | G20: =F20/C20 -> 0.2869198312
A21: 0028 | B21: SPENARD | C21: 436 | D21: 2 | E21: 98 | F21: 100 | G21: =F21/C21 -> 0.2293577982
A22: 0034 | B22: CHAPPIE JAMES | C22: 41 | D22: 0 | E22: 3 | F22: 3 | G22: =F22/C22 -> 0.07317073171
A23: 0019 | B23: NOME | C23: 62 | D23: 0 | E23: 4 | F23: 4 | G23: =F23/C23 -> 0.06451612903
A24: 0013 | B24: SITKA | C24: 116 | D24: 0 | E24: 6 | F24: 6 | G24: =F24/C24 -> 0.05172413793
A25: 0017 | B25: ROBERT G. BLAIR | C25: 251 | D25: 0 | E25: 3 | F25: 3 | G25: =F25/C25 -> 0.01195219124
B27: TOTAL | C27: 3769 | D27: 55 | E27: 1275 | F27: 1330 | G27: =F27/C27 -> 0.3528787477
